fUSD/lending_fUSD_20240423
["ID","MTS","AMOUNT","RATE_DAILY","PERIOD"]
[323326624,1713898232121,-677.45377569,0.00012,2]
[323326625,1713898232134,-189.2218442,0.00012,2]
[323326626,1713898232144,-473.64244649,0.00012229,2]
[323326627,1713898232162,-5030.0,0.00012229,2]
[323326628,1713898232567,-1996.35755351,0.00012229,2]
[323326629,1713898232577,-1000.0,0.00012229,2]
[323326630,1713898232587,-2500.0,0.00012229,2]
[323326631,1713898232597,-1201.50975282,0.00012232,2]
[323326632,1713898232607,-150.0,0.00012301,2]
[323326633,1713898232616,-169.21982,0.0001231,2]
[323326634,1713898232625,-507.252113,0.00012327,2]
[323326635,1713898232635,-6606.66075767,0.00012327,2]
[323326636,1713898232646,-2274.26238943,0.00012327,2]
[323326637,1713898232658,-1178.45951756,0.00012327,2]
[323326638,1713898232669,-611.71059997,0.00012327,2]
[323326639,1713898232681,-184249.94861319,0.00012327,2]
[323326640,1713898232692,-284.49703418,0.00012327,2]
[323326641,1713898232727,-324.714564,0.00012327,2]
[323326642,1713898232739,-1133.16129937,0.00012327,2]
[323326674,1713898237884,-1376.23194462,0.00012327,2]
[323326676,1713898237896,-275.697,0.00012327,2]
[323326678,1713898237907,-555.185939,0.00012327,2]
[323326680,1713898237944,-18839.14674092,0.00012327,2]
[323326681,1713898238007,-934.63394142,0.00012327,2]
[323326682,1713898238019,-872.70044043,0.00012327,2]
[323326683,1713898238030,-4564.27396513,0.00012327,2]
[323326854,1713898239913,-406.7734298,0.00012327,2]
[323326856,1713898239924,-4203.68525853,0.00012327,2]
[323326858,1713898239935,-8144.0247,0.00012327,2]
[323326861,1713898239948,-647.05,0.00012327,2]
[323326877,1713898240214,-308756.35394886,0.00012327,2]
[323326878,1713898240224,-200.0,0.00012327,2]
[323326879,1713898240233,-313.74231263,0.00012327,2]
[323326880,1713898240244,-207.71775347,0.00012327,2]
[323326881,1713898240253,-500.0,0.00012328,2]
[323326882,1713898240262,-500.0,0.00012328,2]
[323326883,1713898240271,-500.0,0.00012328,2]
[323326884,1713898240280,-500.0,0.00012328,2]
[323326885,1713898240290,-1573.19,0.00012328,2]
[323326886,1713898240299,-500.0,0.00012328,2]
[323326887,1713898240308,-1006.77,0.00012328,2]
[323326888,1713898240317,-500.0,0.00012328,2]
[323326889,1713898240327,-500.0,0.00012328,2]
[323326890,1713898240336,-679.49,0.00012328,2]
[323326891,1713898240346,-500.0,0.00012328,2]
[323326892,1713898240355,-500.0,0.00012328,2]
[323326893,1713898240364,-500.0,0.00012328,2]
[323326894,1713898240376,-500.0,0.00012328,2]
[323326895,1713898240385,-500.0,0.00012328,2]
[323326896,1713898240395,-500.0,0.00012328,2]
[323326897,1713898240404,-500.0,0.00012328,2]
[323326898,1713898240413,-500.0,0.00012328,2]
[323326905,1713898240423,-1122.63,0.00012328,2]
[323326906,1713898240661,-500.0,0.00012328,2]
[323326907,1713898240670,-500.0,0.00012328,2]
[323326908,1713898240680,-459.60574159,0.00012328,2]
[323326909,1713898240690,-883.27,0.00012328,2]
[323326910,1713898240699,-500.0,0.00012328,2]
[323326911,1713898240708,-1651.49,0.00012328,2]
[323326913,1713898240718,-500.0,0.00012328,2]
[323326915,1713898240727,-500.0,0.00012328,2]
[323326916,1713898240735,-500.0,0.00012328,2]
[323326917,1713898240744,-500.0,0.00012328,2]
[323326918,1713898240753,-500.0,0.00012328,2]
[323326919,1713898240763,-1099.47,0.00012328,2]
[323326920,1713898240772,-500.0,0.00012328,2]
[323326921,1713898240782,-1065.82,0.00012328,2]
[323326922,1713898240791,-628.87,0.00012328,2]
[323326923,1713898240800,-1849.16,0.00012328,2]
[323326924,1713898240810,-500.0,0.00012328,2]
[323326925,1713898240820,-500.0,0.00012328,2]
[323326926,1713898240829,-500.0,0.00012328,2]
[323326927,1713898240838,-554.4,0.00012328,2]
[323326928,1713898240848,-500.0,0.00012328,2]
[323326929,1713898240857,-500.0,0.00012328,2]
[323326930,1713898240866,-500.0,0.00012328,2]
[323326931,1713898240884,-500.0,0.00012328,2]
[323326932,1713898240893,-500.0,0.00012328,2]
[323326933,1713898240903,-500.0,0.00012328,2]
[323326934,1713898240913,-4288.58,0.00012328,2]
[323326935,1713898240923,-6898.45,0.00012328,2]
[323326936,1713898240932,-500.0,0.00012328,2]
[323326937,1713898240942,-500.0,0.00012328,2]
[323326938,1713898240952,-495.61,0.00012328,2]
[323326939,1713898240961,-500.0,0.00012328,2]
[323326940,1713898240972,-40034.4948,0.0001233,2]
[323326941,1713898240983,-100000.0,0.0001233,2]
[323326942,1713898240993,-179.45408813,0.00012332,2]
[323326943,1713898241002,-8000.0,0.00012332,2]
[323326944,1713898241012,-866.30224394,0.00012332,2]
[323326945,1713898241022,-5545.84899001,0.00012428,2]
[323326946,1713898241031,-359.32667582,0.00012428,2]
[323326947,1713898241041,-2179.47661995,0.00012428,2]
[323326948,1713898241050,-7340.64841283,0.00012428,2]
[323326949,1713898241060,-155.0,0.00012428,2]
[323326950,1713898241070,-500.0,0.00012428,2]
[323326951,1713898241079,-500.0,0.00012428,2]
[323326952,1713898241089,-500.0,0.00012428,2]
[323326953,1713898241098,-500.0,0.00012428,2]
[323326954,1713898241108,-226.33,0.00012428,2]
[323326955,1713898241118,-500.0,0.00012428,2]
[323326956,1713898241129,-500.0,0.00012428,2]
[323326957,1713898241139,-500.0,0.00012428,2]
[323326958,1713898241149,-500.0,0.00012428,2]
[323326959,1713898241159,-500.0,0.00012428,2]
[323326960,1713898241168,-500.0,0.00012428,2]
[323326961,1713898241177,-500.0,0.00012428,2]
[323326962,1713898241187,-500.0,0.00012428,2]
[323326963,1713898241196,-470.47339985,0.00012428,2]
[323326964,1713898241205,-500.0,0.00012429,2]
[323326965,1713898241215,-568.19,0.00012429,2]
[323326966,1713898241224,-500.0,0.00012429,2]
[323326967,1713898241233,-500.0,0.00012429,2]
[323326968,1713898241243,-500.0,0.00012429,2]
[323326969,1713898241252,-500.0,0.00012429,2]
[323326970,1713898241262,-599.46,0.00012429,2]
[323326971,1713898241271,-500.0,0.00012429,2]
[323326972,1713898241280,-500.0,0.00012429,2]
[323326973,1713898241290,-500.0,0.00012429,2]
[323326974,1713898241299,-500.0,0.00012429,2]
[323326975,1713898241308,-1461.84,0.00012429,2]
[323326976,1713898241318,-500.0,0.00012429,2]
[323326977,1713898241327,-500.0,0.00012429,2]
[323326978,1713898241336,-667.53,0.00012429,2]
[323326979,1713898241345,-500.0,0.00012429,2]
[323326980,1713898241354,-1163.78,0.00012429,2]
[323326981,1713898241364,-500.0,0.00012429,2]
[323326982,1713898241376,-500.0,0.00012429,2]
[323326983,1713898241386,-500.0,0.00012429,2]
[323326984,1713898241395,-500.0,0.00012429,2]
[323326985,1713898241404,-500.0,0.00012429,2]
[323326986,1713898241413,-500.0,0.00012429,2]
[323326987,1713898241423,-500.0,0.00012429,2]
[323326988,1713898241432,-500.0,0.00012429,2]
[323326989,1713898241441,-500.0,0.00012429,2]
[323326990,1713898241451,-500.0,0.00012429,2]
[323326991,1713898241461,-500.0,0.00012429,2]
[323326992,1713898241470,-500.0,0.00012429,2]
[323326993,1713898241479,-585.9,0.00012429,2]
[323326994,1713898241488,-500.0,0.00012429,2]
[323326995,1713898241498,-500.0,0.00012429,2]
[323326996,1713898241507,-500.0,0.00012429,2]
[323326997,1713898241518,-500.0,0.00012429,2]
[323326998,1713898241528,-155.0,0.0001243,2]
[323326999,1713898241537,-10011.34946386,0.0001243,2]
[323327000,1713898241546,-1060.52885847,0.0001243,2]
[323327001,1713898241557,-2998.19665026,0.00012431,2]
[323327002,1713898241566,-444.05092147,0.00012431,2]
[323327003,1713898241576,-355.92855721,0.00012431,2]
[323327004,1713898241586,-155.40521512,0.00012431,2]
[323327005,1713898241597,-565.34977281,0.00012431,2]
[323327006,1713898241607,-194.27,0.00012431,2]
[323327007,1713898241617,-500.0,0.00012431,2]
[323327008,1713898241629,-635.28,0.00012431,2]
[323327009,1713898241639,-523.867998,0.00012431,2]
[323327010,1713898241648,-1201.50975282,0.00012566,2]
[323327011,1713898241657,-577.0,0.00012575,2]
[323327012,1713898241667,-1353.0,0.00012575,2]
[323327013,1713898241677,-500.0,0.00012602,2]
[323327014,1713898241687,-500.0,0.00012602,2]
[323327015,1713898241696,-500.0,0.00012602,2]
[323327016,1713898241706,-500.0,0.00012602,2]
[323327017,1713898241715,-1573.19,0.00012602,2]
[323327018,1713898241725,-500.0,0.00012602,2]
[323327019,1713898241735,-1006.77,0.00012602,2]
[323327020,1713898241744,-500.0,0.00012602,2]
[323327021,1713898241754,-500.0,0.00012602,2]
[323327022,1713898241764,-679.49,0.00012602,2]
[323327023,1713898241774,-500.0,0.00012602,2]
[323327024,1713898241783,-500.0,0.00012602,2]
[323327025,1713898241793,-500.0,0.00012602,2]
[323327026,1713898241802,-500.0,0.00012602,2]
[323327027,1713898241812,-220.43553375,0.00012602,2]
[323327028,1713898241822,-500.0,0.00012602,2]
[323327029,1713898241832,-500.0,0.00012602,2]
[323327030,1713898241842,-500.0,0.00012602,2]
[323327031,1713898241851,-1122.63,0.00012602,2]
[323327032,1713898241861,-500.0,0.00012602,2]
[323327033,1713898241872,-500.0,0.00012602,2]
[323327034,1713898241882,-883.27,0.00012602,2]
[323327035,1713898241891,-480.75553189,0.00012602,2]
[323327036,1713898241900,-1651.49,0.00012602,2]
[323327037,1713898241910,-500.0,0.00012602,2]
[323327038,1713898241920,-500.0,0.00012602,2]
[323327039,1713898241930,-500.0,0.00012602,2]
[323327040,1713898241939,-500.0,0.00012602,2]
[323327041,1713898241949,-500.0,0.00012602,2]
[323327042,1713898241959,-1099.47,0.00012602,2]
[323327043,1713898241968,-500.0,0.00012602,2]
[323327044,1713898241978,-1065.82,0.00012602,2]
[323327045,1713898241988,-628.87,0.00012602,2]
[323327046,1713898241997,-1849.16,0.00012602,2]
[323327047,1713898242006,-500.0,0.00012602,2]
[323327048,1713898242016,-500.0,0.00012602,2]
[323327049,1713898242026,-500.0,0.00012602,2]
[323327050,1713898242035,-554.4,0.00012602,2]
[323327051,1713898242044,-500.0,0.00012602,2]
[323327052,1713898242053,-500.0,0.00012602,2]
[323327053,1713898242063,-500.0,0.00012602,2]
[323327054,1713898242072,-500.0,0.00012602,2]
[323327055,1713898242082,-500.0,0.00012602,2]
[323327056,1713898242091,-500.0,0.00012602,2]
[323327057,1713898242100,-4288.58,0.00012602,2]
[323327058,1713898242110,-6898.45,0.00012602,2]
[323327059,1713898242119,-500.0,0.00012602,2]
[323327060,1713898242130,-500.0,0.00012602,2]
[323327061,1713898242139,-500.0,0.00012602,2]
[323327062,1713898242149,-500.0,0.00012702,2]
[323327063,1713898242159,-500.0,0.00012702,2]
[323327064,1713898242169,-500.87885231,0.00012702,2]
[323327065,1713898242178,-500.0,0.00012702,2]
[323327066,1713898242188,-500.0,0.00012702,2]
[323327067,1713898242197,-500.0,0.00012702,2]
[323327068,1713898242206,-500.0,0.00012702,2]
[323327069,1713898242215,-500.0,0.00012702,2]
[323327070,1713898242225,-464.78,0.00012702,2]
[323327071,1713898242234,-500.0,0.00012702,2]
[323327072,1713898242244,-500.0,0.00012702,2]
[323327073,1713898242252,-500.0,0.00012703,2]
[323327074,1713898242263,-568.19,0.00012703,2]
[323327075,1713898242274,-500.0,0.00012703,2]
[323327076,1713898242283,-434.18,0.00012703,2]
[323327077,1713898242292,-500.0,0.00012703,2]
[323327078,1713898242302,-500.0,0.00012703,2]
[323327079,1713898242311,-599.46,0.00012703,2]
[323327080,1713898242320,-500.0,0.00012703,2]
[323327081,1713898242329,-500.0,0.00012703,2]
[323327082,1713898242339,-500.0,0.00012703,2]
[323327083,1713898242348,-500.0,0.00012703,2]
[323327084,1713898242358,-1461.84,0.00012703,2]
[323327085,1713898242368,-387.94,0.00012703,2]
[323327086,1713898242379,-500.0,0.00012703,2]
[323327087,1713898242389,-667.53,0.00012703,2]
[323327088,1713898242398,-500.0,0.00012703,2]
[323327089,1713898242407,-1163.78,0.00012703,2]
[323327090,1713898242417,-500.0,0.00012703,2]
[323327091,1713898242426,-500.0,0.00012703,2]
[323327092,1713898242435,-500.0,0.00012703,2]
[323327093,1713898242445,-500.0,0.00012703,2]
[323327094,1713898242454,-500.0,0.00012703,2]
[323327095,1713898242463,-500.0,0.00012703,2]
[323327096,1713898242473,-599.04098201,0.00012703,2]
[323327097,1713898242483,-500.0,0.00012703,2]
[323327098,1713898242492,-500.0,0.00012703,2]
[323327099,1713898242502,-500.0,0.00012703,2]
[323327100,1713898242513,-500.0,0.00012703,2]
[323327101,1713898242524,-500.0,0.00012703,2]
[323327102,1713898242534,-585.9,0.00012703,2]
[323327103,1713898242543,-500.0,0.00012703,2]
[323327104,1713898242554,-500.0,0.00012703,2]
[323327105,1713898242563,-500.0,0.00012703,2]
[323327106,1713898242573,-489.14358898,0.00012703,2]
[323327107,1713898242582,-500.0,0.00012705,2]
[323327108,1713898242593,-275.59386605,0.00012868,2]
[323327109,1713898242602,-500.0,0.00012876,2]
[323327110,1713898242612,-500.0,0.00012876,2]
[323327112,1713898242621,-500.0,0.00012876,2]
[323327113,1713898242630,-500.0,0.00012876,2]
[323327115,1713898242640,-1573.19,0.00012876,2]
[323327116,1713898242649,-500.0,0.00012876,2]
[323327117,1713898242658,-1006.77,0.00012876,2]
[323327118,1713898242667,-500.0,0.00012876,2]
[323327119,1713898242676,-500.0,0.00012876,2]
[323327120,1713898242687,-679.49,0.00012876,2]
[323327121,1713898242696,-500.0,0.00012876,2]
[323327122,1713898242705,-500.0,0.00012876,2]
[323327123,1713898242715,-500.0,0.00012876,2]
[323327124,1713898242724,-500.0,0.00012876,2]
[323327125,1713898242733,-500.0,0.00012876,2]
[323327126,1713898242743,-500.0,0.00012876,2]
[323327127,1713898242752,-500.0,0.00012876,2]
[323327128,1713898242762,-1122.63,0.00012876,2]
[323327129,1713898242771,-500.0,0.00012876,2]
[323327130,1713898242780,-500.0,0.00012876,2]
[323327131,1713898242791,-883.27,0.00012876,2]
[323327133,1713898242800,-1651.49,0.00012876,2]
[323327135,1713898242810,-500.0,0.00012876,2]
[323327137,1713898242819,-500.0,0.00012876,2]
[323327139,1713898242828,-500.0,0.00012876,2]
[323327141,1713898242838,-500.0,0.00012876,2]
[323327143,1713898242847,-500.0,0.00012876,2]
[323327145,1713898242856,-1099.47,0.00012876,2]
[323327148,1713898242866,-500.0,0.00012876,2]
[323327151,1713898242877,-1065.82,0.00012876,2]
[323327153,1713898242886,-628.87,0.00012876,2]
[323327155,1713898242895,-1849.16,0.00012876,2]
[323327157,1713898242904,-500.0,0.00012876,2]
[323327158,1713898242913,-500.0,0.00012876,2]
[323327159,1713898242923,-500.0,0.00012876,2]
[323327160,1713898242932,-554.4,0.00012876,2]
[323327161,1713898242942,-500.0,0.00012876,2]
[323327162,1713898242951,-500.0,0.00012876,2]
[323327163,1713898242960,-500.0,0.00012876,2]
[323327164,1713898242970,-500.0,0.00012876,2]
[323327165,1713898242979,-500.0,0.00012876,2]
[323327167,1713898242988,-500.0,0.00012876,2]
[323327169,1713898242997,-4288.58,0.00012876,2]
[323327171,1713898243007,-6898.45,0.00012876,2]
[323327173,1713898243016,-500.0,0.00012876,2]
[323327175,1713898243025,-500.0,0.00012876,2]
[323327177,1713898243034,-500.0,0.00012876,2]
[323327178,1713898243043,-602.642489,0.00012895,2]
[323327180,1713898243052,-1000.0,0.00012896,2]
[323327183,1713898243062,-7594.27305113,0.00012899,2]
[323327185,1713898243071,-172.16538027,0.00012899,2]
[323327186,1713898243081,-176.35323577,0.00012899,2]
[323327188,1713898243091,-206.06084279,0.00012899,2]
[323327189,1713898243100,-1201.50975282,0.00012899,2]
[323327190,1713898243109,-3953.56736154,0.000129,2]
[323327191,1713898243119,-997.36848417,0.000129,2]
[323327192,1713898243129,-173.23648311,0.00012976,2]
[323327193,1713898243138,-500.0,0.00012976,2]
[323327194,1713898243148,-500.0,0.00012976,2]
[323327195,1713898243157,-500.0,0.00012976,2]
[323327196,1713898243167,-173.92928811,0.00012976,2]
[323327197,1713898243176,-500.0,0.00012976,2]
[323327198,1713898243185,-500.0,0.00012976,2]
[323327199,1713898243194,-500.0,0.00012976,2]
[323327200,1713898243204,-500.0,0.00012976,2]
[323327201,1713898243213,-151.0,0.00012977,2]
[323327202,1713898243224,-500.0,0.00012977,2]
[323327203,1713898243234,-568.19,0.00012977,2]
[323327204,1713898243243,-500.0,0.00012977,2]
[323327205,1713898243252,-500.0,0.00012977,2]
[323327206,1713898243262,-500.0,0.00012977,2]
[323327207,1713898243271,-599.46,0.00012977,2]
[323327208,1713898243281,-500.0,0.00012977,2]
[323327209,1713898243291,-500.0,0.00012977,2]
[323327210,1713898243301,-500.0,0.00012977,2]
[323327211,1713898243310,-500.0,0.00012977,2]
[323327212,1713898243319,-1461.84,0.00012977,2]
[323327213,1713898243329,-500.0,0.00012977,2]
[323327214,1713898243338,-667.53,0.00012977,2]
[323327215,1713898243347,-500.0,0.00012977,2]
[323327216,1713898243357,-1163.78,0.00012977,2]
[323327217,1713898243366,-500.0,0.00012977,2]
[323327218,1713898243378,-500.0,0.00012977,2]
[323327219,1713898243387,-500.0,0.00012977,2]
[323327220,1713898243396,-500.0,0.00012977,2]
[323327221,1713898243404,-500.0,0.00012977,2]
[323327222,1713898243414,-500.0,0.00012977,2]
[323327223,1713898243423,-500.0,0.00012977,2]
[323327224,1713898243434,-500.0,0.00012977,2]
[323327225,1713898243444,-500.0,0.00012977,2]
[323327226,1713898243453,-500.0,0.00012977,2]
[323327227,1713898243462,-209.61733206,0.00012977,2]
[323327228,1713898243472,-585.9,0.00012977,2]
[323327229,1713898243482,-500.0,0.00012977,2]
[323327230,1713898243491,-500.0,0.00012977,2]
[323327231,1713898243501,-500.0,0.00012977,2]
[323327232,1713898243512,-643.0,0.00012979,2]
[323327233,1713898243524,-500.0,0.00012979,2]
[323327234,1713898243533,-11388.99181645,0.00012983,2]
[323327235,1713898243542,-7594.27305107,0.00012985,2]
[323327236,1713898243551,-1994.63391406,0.00012996,2]
[323327237,1713898243560,-781.26841583,0.00012997,2]
[323327238,1713898243569,-206.75433877,0.00012997,2]
[323327239,1713898243578,-3080.48716405,0.00012997,2]
[323327240,1713898243589,-3825.61534087,0.00012999,2]
[323327241,1713898243603,-179.20843676,0.00012999,2]
[323327242,1713898243612,-370261.76788252,0.00012999,2]
[323327243,1713898243622,-151.0,0.00012999,2]
[323327244,1713898243632,-151.0,0.00012999,2]
[323327245,1713898243642,-2000.0,0.00012999,2]
[323327246,1713898243651,-4042045.10406512,0.00013,2]
[323327247,1713898243669,-1290.81369367,0.00013,2]
[323327248,1713898243680,-12053.32388051,0.00013,2]
[323327249,1713898243696,-10031.7735,0.00013,2]
[323327250,1713898243859,-408.53284942,0.00011964,2]
[323327251,1713898243871,-4039.91960458,0.00012427,2]
[323327252,1713898243880,-5195.118412,0.00013,2]
[323327253,1713898243891,-12919.99999996,0.00013,2]
[323327254,1713898243919,-647.748,0.00012229,2]
[323327255,1713898243929,-1004.5477651,0.00013,2]
[323327256,1713898243945,-467.04565678,0.00013,2]
[323327257,1713898243957,-1034.06392184,0.00013,2]
[323327258,1713898243968,-1276.4995102,0.00013,2]
[323327259,1713898243979,-537.16417105,0.00013,2]
[323327267,1713898245997,-288.4630602,0.00011964,2]
[323327268,1713898246007,-319.78189988,0.00011964,2]
[323327269,1713898246017,-289.3450399,0.00012328,2]
[323327270,1713898246030,-210.6549601,0.00012328,2]
[323327271,1713898246040,-500.0,0.00012328,2]
[323327272,1713898246050,-500.0,0.00012602,2]
[323327273,1713898246060,-189.8,0.00012876,2]
[323327274,1713898246069,-179.20843676,0.00012999,2]
[323327275,1713898246079,-855.52072649,0.00013,2]
[323327276,1713898246092,-102742.12799999,0.00013,2]
[323327277,1713898246103,-114998.41294751,0.00013,2]
[323327278,1713898246152,-1121.77853496,0.00013,2]
[323327279,1713898246163,-7064.46539688,0.00013,2]
[323327280,1713898246174,-983.86902031,0.00013,2]
[323327281,1713898246185,-304.63096897,0.00013,2]
[323327282,1713898246197,-7104.6828428,0.00013,2]
[323327283,1713898246208,-601.93717688,0.00013,2]
[323327284,1713898246219,-506603.93087477,0.00013,2]
[323327285,1713898246230,-86583.79041058,0.00013,2]
[323327286,1713898246241,-6546.012,0.00013,2]
[323327287,1713898246262,-360.44824083,0.00013,2]
[323327288,1713898246273,-502.13752266,0.00013,2]
[323327289,1713898246284,-266.757,0.00013,2]
[323327290,1713898246295,-1232.59825842,0.00013,2]
[323327300,1713898312046,169.64,9.562e-05,2]
[323327301,1713898324762,-601.0,0.00011963,2]
[323327302,1713898324786,-234.02253581,0.00011964,2]
[323327303,1713898324809,-408.44440552,0.00011964,2]
[323327304,1713898324832,-225.22,0.00011972,2]
[323327305,1713898324856,-231.31305867,0.00012226,2]
[323327306,1713898372666,284.16251043,0.00011002,2]
[323327307,1713898383827,155.79661018,0.00011002,2]
[323327308,1713898398824,-150.0,0.00011844,2]
[323327309,1713898398847,-347.11657611,0.00011867,2]
[323327310,1713898398869,-4652.88342389,0.00011899,2]
[323327311,1713898406375,361.27483711,0.00011002,2]
[323327312,1713898408818,173.06930294,0.00011002,2]
[323327313,1713898408986,288.4630602,0.00011002,2]
[323327314,1713898411501,365.80749897,0.00011002,2]
[323327315,1713898422822,173.06930294,0.00011002,2]
[323327316,1713898426377,171.36822231,0.00011002,2]
[323327317,1713898426398,189.9066148,0.00011002,2]
[323327318,1713898426932,288.24831111,0.00011002,2]
[323327319,1713898427499,365.80749897,0.00011002,2]
[323327320,1713898438837,173.06930294,0.00011002,2]
[323327321,1713898445503,365.68821372,0.00011002,2]
[323327322,1713898450379,360.99988749,0.00011002,2]
[323327323,1713898456843,173.06930294,0.00011002,2]
[323327324,1713898462858,408.31930259,0.00011002,2]
[323327325,1713898463512,365.59016847,0.00011002,2]
[323327327,1713898476863,172.87156737,0.00011002,2]
[323327328,1713898517523,-603.65130117,0.00011302,2]
[323327329,1713898517546,-282.37,0.00011729,2]
[323327330,1713898527027,684.7924,0.00011799,2]
[323327331,1713898540584,2429.18629883,0.00011888,2]
[323327332,1713898540838,-400.0,0.00011888,2]
[323327333,1713898541940,-400.0,0.00011888,2]
[323327334,1713898564069,1136.4298296,0.00011,2]
[323327335,1713898564091,4000.0,0.00011,2]
[323327336,1713898564111,1131.02965466,0.00011,2]
[323327337,1713898564783,-367.18395097,0.00011888,2]
[323327338,1713898564805,-3532.81604903,0.00011889,2]
[323327339,1713898610854,529.32475234,0.00011302,2]
[323327340,1713898673235,-1012.52,0.00011609,2]
[323327341,1713898673259,-155.0,0.00011696,2]
[323327342,1713898673284,-1000.0,0.00011697,2]
[323327343,1713898673307,-5453.70447604,0.00011889,2]
[323327344,1713898673332,-150.0,0.00011896,2]
[323327345,1713898673356,-150.0,0.00011896,2]
[323327346,1713898673381,-2078.77552396,0.00011897,2]
[323327347,1713898700675,1126.47,9.776e-05,2]
[323327348,1713898909631,169.64,9.257e-05,2]
[323327350,1713899047565,-161.59759695,0.00011471,2]
[323327351,1713899047589,-187.91,0.00011532,2]
[323327352,1713899047610,-161.59759695,0.00011553,2]
[323327353,1713899047633,-749.55466285,0.0001157,2]
[323327354,1713899047655,-1739.34014325,0.00011571,3]
[323327355,1713899066407,-260.65985675,0.00011571,3]
[323327356,1713899066432,-172.31,0.00011571,2]
[323327357,1713899066452,-161.59759695,0.00011636,2]
[323327358,1713899066474,-260.490281,0.00011699,2]
[323327359,1713899066496,-161.59759695,0.00011718,2]
[323327360,1713899066517,-150.0,0.00011798,2]
[323327361,1713899066538,-300.0,0.00011798,2]
[323327362,1713899066560,-1533.34466835,0.00011799,2]
[323327363,1713899067606,-3000.0,0.00011799,2]
[323327364,1713899068839,-2966.65533165,0.00011799,2]
[323327365,1713899068864,-33.34466835,0.000118,2]
[323327366,1713899080483,-3000.0,0.00011799,2]
[323327367,1713899082973,-3000.0,0.00011799,2]
[323327368,1713899084711,-1500.0,0.00011799,2]
[323327369,1713899084732,-128.2529286,0.000118,2]
[323327370,1713899104880,200.0,0.00011732,2]
[323327371,1713899175258,740.1479,0.00011799,2]
[323327372,1713899200275,431.5991714,9.815e-05,2]
[323327373,1713899200298,638.5408286,9.815e-05,2]
[323327374,1713899205216,-3000.0,0.00011896,2]
[323327375,1713899205235,-155.0,0.00011897,2]
[323327376,1713899205257,-410.490281,0.00011897,2]
[323327377,1713899205276,-184.3621,0.00011897,2]
[323327378,1713899205296,-175.09192514,0.00011897,2]
[323327379,1713899205317,-3498.69568182,0.00011897,2]
[323327380,1713899205338,-1233.87226369,0.00011897,2]
[323327381,1713899205358,-3466.36882622,0.00011898,2]
[323327382,1713899205380,-500.0,0.00011898,2]
[323327383,1713899205400,-500.0,0.00011898,2]
[323327384,1713899205422,-500.0,0.00011898,2]
[323327385,1713899205443,-500.0,0.00011898,2]
[323327386,1713899205465,-500.0,0.00011898,2]
[323327387,1713899205485,-500.0,0.00011898,2]
[323327388,1713899205505,-500.0,0.00011898,2]
[323327389,1713899205527,-376.11892213,0.00011898,2]
[323327390,1713899217354,2361.4591714,0.00011799,2]
[323327415,1713899432037,-273.32944117,0.000117,2]
[323327417,1713899432047,-1141.10786017,0.000117,2]
[323327418,1713899432088,-311.8115,0.000117,2]
[323327419,1713899432099,-60.21645025,0.000117,2]
[323327420,1713899432109,-372.17796498,0.00011799,2]
[323327421,1713899432122,-1084.00000008,0.00011799,2]
[323327422,1713899432133,-6043.82203494,0.00011799,2]
[323327423,1713899432143,-2500.0,0.00011799,2]
[323327424,1713899432153,-500.0,0.00011896,2]